fUST/lending_fUST_20250801
["ID","MTS","AMOUNT","RATE_DAILY","PERIOD"]
[376522930,1754007041335,-269.76321323,0.00019173,2]
[376523155,1754007043666,-230.23678677,0.00019173,2]
[376523157,1754007043676,-500.0,0.00019173,2]
[376523159,1754007043686,-198.58295564,0.00019173,2]
[376523162,1754007043696,-784.31289189,0.00019173,2]
[376523164,1754007043708,-2391.3916326,0.00019173,2]
[376523166,1754007043719,-1306.17964195,0.00019173,2]
[376523174,1754007043775,-3669.02104238,0.00019173,2]
[376523178,1754007043786,-500.0,0.00019177,2]
[376523180,1754007043795,-595.04,0.00019178,2]
[376523182,1754007043804,-807.22,0.00019178,2]
[376523184,1754007043814,-460.0,0.00019178,2]
[376523186,1754007043823,-460.0,0.00019178,2]
[376523188,1754007043832,-460.0,0.00019178,2]
[376523190,1754007043842,-460.0,0.00019178,2]
[376523192,1754007043851,-460.0,0.00019178,2]
[376523194,1754007043860,-460.0,0.00019178,2]
[376523196,1754007043870,-168.28342658,0.00019178,2]
[376523198,1754007043879,-375.81629734,0.00019178,2]
[376523200,1754007043889,-460.0,0.00019178,2]
[376523202,1754007043899,-460.0,0.00019178,2]
[376523204,1754007043909,-460.0,0.00019178,2]
[376523206,1754007043918,-598.87685201,0.00019178,2]
[376523208,1754007043927,-460.0,0.00019178,2]
[376523210,1754007043939,-440.49143142,0.00019178,2]
[376523212,1754007043948,-454.07300451,0.00019178,2]
[376523214,1754007043957,-460.0,0.00019178,2]
[376523216,1754007043968,-460.0,0.00019178,2]
[376523218,1754007043979,-460.0,0.00019178,2]
[376523220,1754007043988,-460.0,0.00019178,2]
[376523222,1754007044001,-460.0,0.00019178,2]
[376523224,1754007044011,-460.0,0.00019178,2]
[376523226,1754007044021,-461.92264065,0.00019178,2]
[376523228,1754007044031,-460.0,0.00019178,2]
[376523230,1754007044040,-460.0,0.00019178,2]
[376523232,1754007044050,-460.0,0.00019178,2]
[376523234,1754007044059,-460.0,0.00019178,2]
[376523236,1754007044069,-560.56,0.00019178,2]
[376523238,1754007044078,-460.0,0.00019178,2]
[376523240,1754007044088,-401.10302455,0.00019178,2]
[376523242,1754007044098,-460.0,0.00019178,2]
[376523244,1754007044107,-460.0,0.00019178,2]
[376523246,1754007044117,-460.0,0.00019178,2]
[376523248,1754007044127,-460.0,0.00019178,2]
[376523250,1754007044137,-460.0,0.00019178,2]
[376523252,1754007044146,-460.0,0.00019178,2]
[376523254,1754007044154,-460.0,0.00019178,2]
[376523256,1754007044163,-464.53452496,0.00019178,2]
[376523259,1754007044173,-460.0,0.00019178,2]
[376523261,1754007044182,-460.0,0.00019178,2]
[376523262,1754007044192,-460.0,0.00019178,2]
[376523264,1754007044202,-363.96347991,0.00019178,2]
[376523266,1754007044211,-464.42052314,0.00019178,2]
[376523269,1754007044220,-465.6972786,0.00019178,2]
[376523271,1754007044230,-460.0,0.00019178,2]
[376523273,1754007044240,-460.0,0.00019178,2]
[376523275,1754007044251,-460.0,0.00019178,2]
[376523277,1754007044260,-460.0,0.00019178,2]
[376523278,1754007044270,-460.0,0.00019178,2]
[376523281,1754007044280,-460.0,0.00019178,2]
[376523282,1754007044289,-604.48887947,0.00019178,2]
[376523285,1754007044299,-460.0,0.00019178,2]
[376523287,1754007044308,-460.0,0.00019178,2]
[376523288,1754007044318,-460.0,0.00019178,2]
[376523291,1754007044327,-462.46344954,0.00019178,2]
[376523292,1754007044336,-460.0,0.00019178,2]
[376523295,1754007044345,-460.0,0.00019178,2]
[376523297,1754007044355,-460.0,0.00019178,2]
[376523299,1754007044364,-460.0,0.00019178,2]
[376523301,1754007044374,-460.0,0.00019178,2]
[376523303,1754007044382,-460.0,0.00019178,2]
[376523304,1754007044392,-460.0,0.00019178,2]
[376523306,1754007044402,-460.0,0.00019178,2]
[376523308,1754007044413,-460.0,0.00019178,2]
[376523310,1754007044423,-460.0,0.00019178,2]
[376523312,1754007044432,-436.41179171,0.00019178,2]
[376523314,1754007044441,-460.0,0.00019178,2]
[376523317,1754007044452,-460.0,0.00019178,2]
[376523319,1754007044461,-460.0,0.00019178,2]
[376523321,1754007044470,-568.3,0.00019178,2]
[376523323,1754007044480,-460.0,0.00019178,2]
[376523325,1754007044489,-460.0,0.00019178,2]
[376523326,1754007044501,-460.0,0.00019178,2]
[376523328,1754007044511,-460.0,0.00019178,2]
[376523331,1754007044521,-460.0,0.00019178,2]
[376523333,1754007044530,-460.0,0.00019178,2]
[376523335,1754007044540,-460.0,0.00019178,2]
[376523337,1754007044550,-460.0,0.00019178,2]
[376523338,1754007044559,-500.0,0.00019178,2]
[376523340,1754007044569,-500.0,0.00019178,2]
[376523343,1754007044579,-500.0,0.00019178,2]
[376523345,1754007044589,-464.02397835,0.00019178,2]
[376523347,1754007044599,-460.0,0.00019178,2]
[376523349,1754007044608,-460.0,0.00019178,2]
[376523350,1754007044618,-460.0,0.00019178,2]
[376523351,1754007044627,-460.0,0.00019178,2]
[376523352,1754007044636,-460.0,0.00019178,2]
[376523353,1754007044646,-460.0,0.00019178,2]
[376523354,1754007044656,-314.60891328,0.00019178,2]
[376523355,1754007044666,-460.0,0.00019178,2]
[376523356,1754007044676,-460.0,0.00019178,2]
[376523357,1754007044685,-460.0,0.00019178,2]
[376523358,1754007044695,-460.0,0.00019178,2]
[376523359,1754007044704,-460.0,0.00019178,2]
[376523360,1754007044714,-530.88529812,0.00019178,2]
[376523362,1754007044723,-217.09697227,0.00019178,2]
[376523364,1754007044733,-460.0,0.00019178,2]
[376523365,1754007044742,-460.0,0.00019178,2]
[376523366,1754007044755,-460.0,0.00019178,2]
[376523367,1754007044764,-460.0,0.00019178,2]
[376523368,1754007044773,-460.0,0.00019178,2]
[376523369,1754007044782,-460.0,0.00019178,2]
[376523370,1754007044792,-460.0,0.00019178,2]
[376523372,1754007044801,-460.0,0.00019178,2]
[376523374,1754007044810,-459.32454854,0.00019178,2]
[376523376,1754007044819,-460.0,0.00019178,2]
[376523378,1754007044828,-462.49825127,0.00019178,2]
[376523380,1754007044837,-460.0,0.00019178,2]
[376523382,1754007044846,-460.63193978,0.00019178,2]
[376523384,1754007044855,-460.0,0.00019178,2]
[376523386,1754007044865,-500.0,0.00019178,2]
[376523388,1754007044874,-500.0,0.00019178,2]
[376523390,1754007044883,-500.0,0.00019178,2]
[376523392,1754007044893,-460.0,0.00019178,2]
[376523394,1754007044903,-460.0,0.00019178,2]
[376523396,1754007044912,-460.0,0.00019178,2]
[376523398,1754007044922,-460.0,0.00019178,2]
[376523400,1754007044932,-460.0,0.00019178,2]
[376523402,1754007044944,-460.0,0.00019178,2]
[376523404,1754007044954,-460.0,0.00019178,2]
[376523406,1754007044963,-460.0,0.00019178,2]
[376523408,1754007044973,-460.0,0.00019178,2]
[376523410,1754007044982,-460.0,0.00019178,2]
[376523412,1754007044992,-460.0,0.00019178,2]
[376523414,1754007045005,-460.0,0.00019178,2]
[376523417,1754007045015,-460.0,0.00019178,2]
[376523419,1754007045025,-460.0,0.00019178,2]
[376523421,1754007045035,-460.0,0.00019178,2]
[376523423,1754007045044,-460.0,0.00019178,2]
[376523425,1754007045053,-460.0,0.00019178,2]
[376523426,1754007045062,-460.0,0.00019178,2]
[376523429,1754007045072,-460.0,0.00019178,2]
[376523430,1754007045081,-460.0,0.00019178,2]
[376523433,1754007045091,-460.0,0.00019178,2]
[376523435,1754007045100,-460.0,0.00019178,2]
[376523437,1754007045109,-460.0,0.00019178,2]
[376523439,1754007045118,-460.0,0.00019178,2]
[376523441,1754007045127,-460.0,0.00019178,2]
[376523443,1754007045136,-561.58,0.00019178,2]
[376523445,1754007045145,-460.0,0.00019178,2]
[376523447,1754007045154,-168.38,0.00019178,2]
[376523449,1754007045163,-460.0,0.00019178,2]
[376523451,1754007045172,-460.0,0.00019178,2]
[376523453,1754007045181,-460.0,0.00019178,2]
[376523455,1754007045190,-465.09713331,0.00019178,2]
[376523457,1754007045200,-460.0,0.00019178,2]
[376523459,1754007045209,-460.0,0.00019178,2]
[376523461,1754007045218,-460.0,0.00019178,2]
[376523463,1754007045227,-460.0,0.00019178,2]
[376523465,1754007045236,-186.04158729,0.00019178,2]
[376523467,1754007045245,-460.0,0.00019178,2]
[376523468,1754007045258,-576.41110111,0.00019178,2]
[376523471,1754007045268,-460.0,0.00019178,2]
[376523472,1754007045277,-460.0,0.00019178,2]
[376523474,1754007045287,-460.0,0.00019178,2]
[376523477,1754007045296,-460.0,0.00019178,2]
[376523479,1754007045306,-460.0,0.00019178,2]
[376523480,1754007045315,-460.0,0.00019178,2]
[376523483,1754007045325,-460.0,0.00019178,2]
[376523484,1754007045334,-460.0,0.00019178,2]
[376523487,1754007045343,-460.0,0.00019178,2]
[376523489,1754007045353,-460.0,0.00019178,2]
[376523491,1754007045362,-460.0,0.00019178,2]
[376523493,1754007045371,-460.0,0.00019178,2]
[376523495,1754007045380,-460.0,0.00019178,2]
[376523497,1754007045390,-460.0,0.00019178,2]
[376523499,1754007045399,-460.0,0.00019178,2]
[376523500,1754007045408,-457.96705291,0.00019178,2]
[376523502,1754007045418,-460.0,0.00019178,2]
[376523505,1754007045428,-460.0,0.00019178,2]
[376523506,1754007045437,-460.0,0.00019178,2]
[376523508,1754007045446,-460.0,0.00019178,2]
[376523510,1754007045456,-460.0,0.00019178,2]
[376523512,1754007045465,-460.0,0.00019178,2]
[376523514,1754007045475,-460.0,0.00019178,2]
[376523516,1754007045486,-460.0,0.00019178,2]
[376523518,1754007045495,-534.68,0.00019178,2]
[376523520,1754007045508,-460.0,0.00019178,2]
[376523522,1754007045518,-460.0,0.00019178,2]
[376523525,1754007045527,-460.0,0.00019178,2]
[376523526,1754007045537,-460.0,0.00019178,2]
[376523529,1754007045547,-460.0,0.00019178,2]
[376523531,1754007045556,-460.0,0.00019178,2]
[376523533,1754007045566,-460.0,0.00019178,2]
[376523535,1754007045576,-487.18847066,0.00019178,2]
[376523537,1754007045585,-460.0,0.00019178,2]
[376523539,1754007045595,-466.16479031,0.00019178,2]
[376523541,1754007045604,-460.0,0.00019178,2]
[376523542,1754007045614,-460.0,0.00019178,2]
[376523544,1754007045624,-460.0,0.00019178,2]
[376523546,1754007045634,-460.0,0.00019178,2]
[376523549,1754007045643,-463.18029216,0.00019178,2]
[376523551,1754007045653,-460.0,0.00019178,2]
[376523553,1754007045662,-460.0,0.00019178,2]
[376523554,1754007045672,-460.0,0.00019178,2]
[376523557,1754007045682,-460.0,0.00019178,2]
[376523559,1754007045691,-175.89712825,0.00019178,2]
[376523560,1754007045700,-460.0,0.00019178,2]
[376523562,1754007045709,-460.0,0.00019178,2]
[376523564,1754007045718,-460.0,0.00019178,2]
[376523567,1754007045728,-460.0,0.00019178,2]
[376523569,1754007045737,-209.89,0.00019178,2]
[376523571,1754007045746,-460.0,0.00019178,2]
[376523573,1754007045758,-460.0,0.00019178,2]
[376523575,1754007045767,-460.0,0.00019178,2]
[376523577,1754007045777,-460.0,0.00019178,2]
[376523579,1754007045787,-460.0,0.00019178,2]
[376523581,1754007045796,-249.35377325,0.00019178,2]
[376523583,1754007045805,-460.0,0.00019178,2]
[376523585,1754007045815,-460.0,0.00019178,2]
[376523588,1754007045824,-500.0,0.00019178,2]
[376523591,1754007045838,-460.0,0.00019178,2]
[376523593,1754007045847,-366.99973718,0.00019178,2]
[376523595,1754007045857,-460.0,0.00019178,2]
[376523597,1754007045866,-466.09411442,0.00019178,2]
[376523599,1754007045878,-460.0,0.00019178,2]
[376523601,1754007045887,-460.0,0.00019178,2]
[376523603,1754007045896,-460.0,0.00019178,2]
[376523607,1754007045910,-460.0,0.00019178,2]
[376523610,1754007045919,-460.0,0.00019178,2]
[376523611,1754007045929,-460.0,0.00019178,2]
[376523613,1754007045938,-460.0,0.00019178,2]
[376523616,1754007045953,-460.0,0.00019178,2]
[376523618,1754007045962,-460.0,0.00019178,2]
[376523620,1754007045971,-460.0,0.00019178,2]
[376523622,1754007045983,-460.0,0.00019178,2]
[376523624,1754007045992,-460.0,0.00019178,2]
[376523626,1754007046002,-460.0,0.00019178,2]
[376523628,1754007046011,-1224.84,0.00019178,2]
[376523630,1754007046020,-460.0,0.00019178,2]
[376523632,1754007046029,-460.0,0.00019178,2]
[376523634,1754007046038,-519.98483283,0.00019178,2]
[376523636,1754007046047,-460.0,0.00019178,2]
[376523638,1754007046056,-405.9634697,0.00019178,2]
[376523640,1754007046065,-460.0,0.00019178,2]
[376523655,1754007046200,-460.0,0.00019178,2]
[376523657,1754007046210,-460.0,0.00019178,2]
[376523659,1754007046219,-460.0,0.00019178,2]
[376523661,1754007046229,-460.0,0.00019178,2]
[376523663,1754007046238,-460.0,0.00019178,2]
[376523665,1754007046247,-241.95160117,0.00019178,2]
[376523667,1754007046258,-460.0,0.00019178,2]
[376523669,1754007046267,-460.0,0.00019178,2]
[376523671,1754007046276,-460.0,0.00019178,2]
[376523674,1754007046286,-460.0,0.00019178,2]
[376523676,1754007046295,-315.70284017,0.00019178,2]
[376523678,1754007046304,-460.0,0.00019178,2]
[376523680,1754007046313,-460.0,0.00019178,2]
[376523682,1754007046322,-460.0,0.00019178,2]
[376523684,1754007046331,-460.0,0.00019178,2]
[376523686,1754007046340,-460.0,0.00019178,2]
[376523688,1754007046349,-460.0,0.00019178,2]
[376523689,1754007046359,-460.0,0.00019178,2]
[376523692,1754007046368,-460.0,0.00019178,2]
[376523694,1754007046378,-460.0,0.00019178,2]
[376523696,1754007046387,-201.20081841,0.00019178,2]
[376523698,1754007046397,-460.0,0.00019178,2]
[376523700,1754007046406,-716.78,0.00019178,2]
[376523702,1754007046416,-460.0,0.00019178,2]
[376523704,1754007046425,-575.94,0.00019178,2]
[376523706,1754007046435,-460.0,0.00019178,2]
[376523708,1754007046445,-191.949549,0.00019178,2]
[376523710,1754007046454,-500.0,0.00019178,2]
[376523712,1754007046463,-807.22,0.00019452,2]
[376523714,1754007046472,-432.12734174,0.00019452,2]
[376523716,1754007046482,-460.0,0.00019452,2]
[376523718,1754007046491,-460.0,0.00019452,2]
[376523720,1754007046502,-460.0,0.00019452,2]
[376523722,1754007046512,-460.0,0.00019452,2]
[376523724,1754007046522,-460.0,0.00019452,2]
[376523726,1754007046532,-460.0,0.00019452,2]
[376523728,1754007046542,-460.0,0.00019452,2]
[376523730,1754007046551,-460.0,0.00019452,2]
[376523732,1754007046561,-460.0,0.00019452,2]
[376523734,1754007046571,-460.0,0.00019452,2]
[376523736,1754007046581,-504.56526607,0.00019452,2]
[376523738,1754007046590,-460.0,0.00019452,2]
[376523740,1754007046601,-460.0,0.00019452,2]
[376523742,1754007046610,-460.0,0.00019452,2]
[376523744,1754007046621,-475.28355962,0.00019452,2]
[376523746,1754007046631,-460.0,0.00019452,2]
[376523748,1754007046640,-460.0,0.00019452,2]
[376523750,1754007046649,-460.0,0.00019452,2]
[376523752,1754007046659,-460.0,0.00019452,2]
[376523754,1754007046670,-460.0,0.00019452,2]
[376523756,1754007046685,-460.0,0.00019452,2]
[376523758,1754007046694,-460.0,0.00019452,2]
[376523760,1754007046703,-460.0,0.00019452,2]
[376523762,1754007046713,-460.0,0.00019452,2]
[376523764,1754007046722,-460.0,0.00019452,2]
[376523766,1754007046731,-460.0,0.00019452,2]
[376523768,1754007046741,-355.0389995,0.00019452,2]
[376523770,1754007046751,-421.09990561,0.00019452,2]
[376523782,1754007046850,-460.0,0.00019178,2]
[376523784,1754007046860,-38.90009439,0.00019452,2]
[376523786,1754007046869,-460.0,0.00019452,2]
[376523788,1754007046878,-460.0,0.00019452,2]
[376523790,1754007046888,-460.0,0.00019452,2]
[376523792,1754007046898,-460.0,0.00019452,2]
[376523794,1754007046910,-460.0,0.00019452,2]
[376523796,1754007046919,-460.0,0.00019452,2]
[376523799,1754007046929,-534.68,0.00019452,2]
[376523801,1754007046940,-460.0,0.00019452,2]
[376523803,1754007046950,-479.96,0.00019452,2]
[376523805,1754007046959,-460.0,0.00019452,2]
[376523807,1754007046969,-460.0,0.00019452,2]
[376523808,1754007046978,-460.0,0.00019452,2]
[376523810,1754007046987,-460.0,0.00019452,2]
[376523813,1754007046997,-460.0,0.00019452,2]
[376523814,1754007047008,-460.0,0.00019452,2]
[376523817,1754007047018,-348.59,0.00019452,2]
[376523818,1754007047028,-460.0,0.00019452,2]
[376523820,1754007047037,-460.0,0.00019452,2]
[376523822,1754007047050,-460.0,0.00019452,2]
[376523825,1754007047062,-460.0,0.00019452,2]
[376523826,1754007047071,-460.0,0.00019452,2]
[376523828,1754007047081,-460.0,0.00019452,2]
[376523830,1754007047090,-460.0,0.00019452,2]
[376523832,1754007047099,-460.0,0.00019452,2]
[376523834,1754007047109,-460.0,0.00019452,2]
[376523836,1754007047119,-585.5,0.00019452,2]
[376523838,1754007047128,-460.0,0.00019452,2]
[376523840,1754007047138,-1224.84,0.00019452,2]
[376523843,1754007047147,-460.0,0.00019452,2]
[376523845,1754007047156,-420.46097422,0.00019452,2]
[376523846,1754007047165,-460.0,0.00019452,2]
[376523849,1754007047176,-460.0,0.00019452,2]
[376523850,1754007047187,-460.0,0.00019452,2]
[376523852,1754007047196,-460.0,0.00019452,2]
[376523854,1754007047205,-460.0,0.00019452,2]
[376523856,1754007047214,-362.92821314,0.00019452,2]
[376523858,1754007047224,-460.0,0.00019452,2]
[376523861,1754007047233,-716.78,0.00019452,2]
[376523863,1754007047242,-460.0,0.00019452,2]
[376523865,1754007047253,-500.0,0.00019473,2]
[376523867,1754007047262,-500.0,0.00019473,2]
[376523869,1754007047271,-500.0,0.00019473,2]
[376523871,1754007047280,-476.86,0.000195,2]
[376523872,1754007047297,-200.0,0.00019555,15]
[376523875,1754007047307,-200.0,0.00019555,15]
[376523877,1754007047316,-200.0,0.00019555,15]
[376523879,1754007047325,-200.0,0.00019555,15]
[376523881,1754007047335,-470.40732022,0.00019725,2]
[376523882,1754007047344,-506.53253186,0.00019725,2]
[376523885,1754007047354,-807.22,0.00019726,2]
[376523886,1754007047363,-460.0,0.00019726,2]
[376523889,1754007047373,-460.0,0.00019726,2]
[376523890,1754007047382,-460.0,0.00019726,2]
[376523892,1754007047392,-460.0,0.00019726,2]
[376523894,1754007047402,-460.0,0.00019726,2]
[376523897,1754007047411,-460.0,0.00019726,2]
[376523898,1754007047420,-460.0,0.00019726,2]
[376523900,1754007047429,-185.94323171,0.00019726,2]
[376523903,1754007047439,-460.0,0.00019726,2]
[376523904,1754007047448,-460.0,0.00019726,2]
[376523906,1754007047458,-534.68,0.00019726,2]
[376523909,1754007047467,-523.19,0.00019726,2]
[376523911,1754007047476,-350.33583448,0.00019726,2]
[376523913,1754007047489,-109.66416552,0.00019726,2]
[376523915,1754007047498,-460.0,0.00019726,2]
[376523917,1754007047510,-460.0,0.00019726,2]
[376523919,1754007047520,-460.0,0.00019726,2]
[376523921,1754007047530,-460.0,0.00019726,2]
[376523923,1754007047540,-460.0,0.00019726,2]
[376523925,1754007047549,-460.0,0.00019726,2]
[376523926,1754007047559,-460.0,0.00019726,2]
[376523927,1754007047568,-368.27,0.00019726,2]
[376523928,1754007047577,-1224.84,0.00019726,2]
[376523929,1754007047587,-460.0,0.00019726,2]
[376523930,1754007047596,-460.0,0.00019726,2]
[376523931,1754007047606,-460.0,0.00019726,2]
[376523932,1754007047616,-716.78,0.00019726,2]
[376523933,1754007047625,-370.33956703,0.000199,2]
[376523934,1754007047635,-170.51882624,0.000199,2]
[376523935,1754007047644,-2720.5237135,0.000199,2]
[376523936,1754007047653,-807.22,0.0002,2]
[376523937,1754007047663,-460.0,0.0002,2]
[376523938,1754007047672,-460.0,0.0002,2]
[376523939,1754007047681,-210.96,0.0002,2]
[376523940,1754007047691,-460.0,0.0002,2]
[376523941,1754007047700,-460.0,0.0002,2]
[376523943,1754007047710,-460.0,0.0002,2]
[376523945,1754007047719,-460.0,0.0002,2]
[376523947,1754007047728,-460.0,0.0002,2]
[376523949,1754007047738,-534.68,0.0002,2]
[376523951,1754007047747,-460.0,0.0002,2]
[376523953,1754007047759,-460.0,0.0002,2]
[376523955,1754007047767,-460.0,0.0002,2]
[376523957,1754007047777,-460.0,0.0002,2]
[376523959,1754007047786,-460.0,0.0002,2]
[376523961,1754007047796,-461.03,0.0002,2]
[376523963,1754007047806,-460.0,0.0002,2]
[376523965,1754007047814,-1224.84,0.0002,2]
[376523967,1754007047824,-239.1996081,0.0002,2]
[376523969,1754007047833,-159.17274948,0.0002,2]
[376523971,1754007047842,-460.0,0.0002,2]
[376523973,1754007047851,-716.78,0.0002,2]
[376523975,1754007047860,-500.0,0.0002,2]
[376523977,1754007047869,-841.37753757,0.00020023,2]
[376523979,1754007047879,-353.97442812,0.00020117,2]
[376523981,1754007047889,-2720.52371338,0.00020141,2]
[376523983,1754007047899,-281.607999,0.00020187,2]
[376523985,1754007047910,-807.22,0.00020273,2]
[376523987,1754007047918,-460.0,0.00020273,2]
[376523989,1754007047927,-197.87,0.00020273,2]
[376523991,1754007047938,-460.0,0.00020273,2]
[376523993,1754007047948,-383.17370143,0.00020273,2]
[376523998,1754007047986,-76.82629857,0.00020273,2]
[376523999,1754007047995,-453.81453267,0.00020273,2]
[376524002,1754007048010,-6.18546733,0.00020273,2]
[376524004,1754007048019,-460.0,0.00020273,2]
[376524006,1754007048030,-460.0,0.00020273,2]
[376524008,1754007048039,-534.68,0.00020273,2]
[376524010,1754007048049,-460.0,0.00020273,2]
[376524012,1754007048059,-339.31258922,0.00020273,2]
[376524014,1754007048071,-120.68741078,0.00020273,2]
[376524016,1754007048080,-459.82702683,0.00020273,2]
[376524018,1754007048091,-0.17297317,0.00020273,2]
[376524020,1754007048101,-418.52855902,0.00020273,2]
[376524021,1754007048112,-41.47144098,0.00020273,2]
[376524022,1754007048122,-460.0,0.00020273,2]
[376524024,1754007048131,-460.0,0.00020273,2]
[376524026,1754007048141,-1224.84,0.00020273,2]
[376524028,1754007048150,-460.0,0.00020273,2]
[376524030,1754007048159,-716.78,0.00020273,2]
[376524032,1754007048168,-2720.52371338,0.00020383,3]
[376524034,1754007048178,-232.8,0.00020443,3]
[376524036,1754007048187,-807.22,0.00020547,2]
[376524038,1754007048196,-460.0,0.00020547,2]
[376524040,1754007048206,-460.0,0.00020547,2]
[376524042,1754007048216,-460.0,0.00020547,2]
[376524044,1754007048227,-460.0,0.00020547,2]
[376524046,1754007048236,-460.0,0.00020547,2]
[376524048,1754007048246,-460.0,0.00020547,2]
[376524050,1754007048259,-115.92644564,0.00020547,2]
[376524052,1754007048271,-418.75355436,0.00020547,2]
[376524054,1754007048281,-460.0,0.00020547,2]
[376524056,1754007048290,-460.0,0.00020547,2]
[376524057,1754007048299,-460.0,0.00020547,2]
[376524058,1754007048310,-460.0,0.00020547,2]
[376524060,1754007048320,-230.42279929,0.00020547,2]
[376524062,1754007048329,-460.0,0.00020547,2]
[376524064,1754007048338,-1224.84,0.00020547,2]
[376524066,1754007048347,-460.0,0.00020547,2]
[376524068,1754007048357,-716.78,0.00020547,2]
[376524070,1754007048366,-1796.682639,0.00020624,3]
[376524081,1754007048477,-923.84107438,0.00020624,3]
[376524082,1754007048488,-807.22,0.00020821,2]
[376524083,1754007048498,-460.0,0.00020821,2]
[376524084,1754007048510,-460.0,0.00020821,2]
[376524085,1754007048520,-460.0,0.00020821,2]
[376524086,1754007048530,-460.0,0.00020821,2]
[376524087,1754007048539,-432.470631,0.00020821,2]
[376524088,1754007048549,-460.0,0.00020821,2]
[376524089,1754007048559,-534.68,0.00020821,2]
[376524090,1754007048569,-460.0,0.00020821,2]
[376524091,1754007048579,-460.0,0.00020821,2]
[376524092,1754007048589,-460.0,0.00020821,2]
[376524093,1754007048599,-460.0,0.00020821,2]
[376524094,1754007048609,-460.0,0.00020821,2]
[376524095,1754007048619,-1224.84,0.00020821,2]
[376524096,1754007048629,-568.96,0.00020821,2]
[376524097,1754007048639,-716.78,0.00020821,2]
[376524098,1754007048649,-2720.52371338,0.00020866,4]
[376524099,1754007048658,-420.0,0.00020893,2]
[376524100,1754007048668,-150.0,0.00021,2]
[376524101,1754007048678,-160.0,0.00021023,2]
[376524102,1754007048687,-501.9958024,0.00021056,2]
[376524103,1754007048698,-500.0,0.00021056,2]
[376524104,1754007048707,-807.22,0.00021095,2]
[376524105,1754007048717,-460.0,0.00021095,2]
[376524106,1754007048726,-460.0,0.00021095,2]
[376524107,1754007048735,-460.0,0.00021095,2]
[376524108,1754007048745,-460.0,0.00021095,2]
[376524109,1754007048755,-460.0,0.00021095,2]
[376524110,1754007048764,-534.68,0.00021095,2]
[376524111,1754007048774,-460.0,0.00021095,2]
[376524112,1754007048783,-460.0,0.00021095,2]
[376524113,1754007048792,-460.0,0.00021095,2]
[376524114,1754007048801,-460.0,0.00021095,2]
[376524115,1754007048811,-460.0,0.00021095,2]
[376524116,1754007048821,-1224.84,0.00021095,2]
[376524117,1754007048830,-716.78,0.00021095,2]
[376524118,1754007048840,-2720.52371338,0.00021107,4]
[376524119,1754007048850,-353.97442812,0.00021155,2]
[376524120,1754007048859,-2200.0,0.00021248,2]
[376524121,1754007048868,-2720.52371338,0.00021348,5]
[376524122,1754007048878,-500.0,0.00021369,2]
[376524123,1754007048887,-807.22,0.00021369,2]
[376524124,1754007048897,-460.0,0.00021369,2]